[Event "97th Argentine Championship 2022"]
[Site "Barichole"]
[Date "2022.12.07"]
[Round "8.1"]
[White "Krysa, Leandro"]
[Black "Fiorito, Joaquin"]
[Result "1-0"]
[ECO "A11"]
[WhiteElo "2524"]
[BlackElo "2344"]
[Annotator "TA"]
[PlyCount "45"]
[EventDate "2022.12.01"]
[EventType "tourn"]
[EventCountry "ARG"]
[SourceTitle "playchess.com"]
[Source "ChessBase"]
[SourceQuality "1"]
[TimeControl "40/5400+30:1800+30"]

{[%evp 13,45,7,16,7,8,10,33,37,39,33,34,27,49,53,31,11,69,50,59,59,105,99,147,149,292,301,279,295,451,475,485,503,454,456]} 1. Nf3 {[%emt 0:00:03]} Nf6 {[%emt 0:00:44]} 2. g3 {[%emt 0:00:17]} d5 {[%emt 0:00:32]} 3. Bg2 {[%emt 0:00:14]} Bf5 {[%emt 0:02:20]} 4. O-O {[%emt 0:00:18]} e6 {[%emt 0:01:59]} 5. c4 {[%emt 0:00:12]} c6 {[%emt 0:00:56]} 6. cxd5 {[%emt 0:00:11]} exd5 {[%emt 0:03:01]} 7. d3 {[%emt 0:00:23]} Be7 {[%emt 0:13:17]} 8. Qb3 {[%emt 0:00:20] A11: English Opening: 1...c6.} Qb6 {[%emt 0:05:52]} 9. Qc2 {[%emt 0:00:06]} h6 {[%emt 0:04:35]} 10. Nc3 {[%emt 0:02:17] White is slightly better.} O-O {[%emt 0:05:45]} 11. e4 {[%emt 0:00:06]} Bh7 {[%emt 0:03:06]} 12. Be3 {[%emt 0:01:26]} Qa6 {[%emt 0:02:10]} 13. Rfd1 {[%emt 0:00:06]} Nbd7 {[%emt 0:02:47]} 14. a3 {[%emt 0:06:33][%cal Ba2a3,Ba3a4,Ba4a5][%mdl 32] [#]} Qa5 $146 {[%emt 0:04:06]} ({Black should try} 14... Bc5 $11) ({Predecessor:} 14... dxe4 15. dxe4 Bc5 16. Bxc5 Nxc5 17. Nd4 Rfe8 18. f3 Qb6 19. Qf2 a5 20. Rd2 Nfd7 {½-½ (84) Vachier Lagrave,M (2762)-Van Wely,L (2654) Dubai 2014}) 15. b4 $14 {[%emt 0:10:57]} Qd8 {[%emt 0:00:56]} 16. Qb3 {[%emt 0:10:15][%cal Re4d5]} Nb6 {[%emt 0:07:58]} (16... dxe4 $14 17. dxe4 Nxe4) 17. a4 {[%emt 0:04:40] White has more active pieces. The black rooks are badly placed.} dxe4 {[%emt 0:06:24]} (17... Nbd7 $142) 18. dxe4 $16 {[%emt 0:00:19][%cal Bd3e4,Be4e5][%mdl 32]} Qc8 {[%emt 0:00:05]} (18... Qe8 $16) 19. a5 $18 {[%emt 0:07:14]} Nbd7 {[%emt 0:00:54]} 20. Bh3 {[%emt 0:01:48]} Qe8 {[%emt 0:02:45]} (20... Qc7 $142 21. Bf4 Qc8) 21. e5 {[%emt 0:03:15] White is clearly winning.} Nd5 {[%emt 0:00:06]} 22. Nxd5 {[%emt 0:01:52]} cxd5 {[%emt 0:00:02]} 23. Qxd5 {[%emt 0:00:31] Weighted Error Value: White=0.02 (flawless) /Black=0.42} 1-0

[Event "97th Argentine Championship 2022"]
[Site "Barichole"]
[Date "2022.12.07"]
[Round "8.2"]
[White "Gaitan, Juan Manuel"]
[Black "Peralta, Fernando"]
[Result "0-1"]
[ECO "E17"]
[WhiteElo "2347"]
[BlackElo "2587"]
[Annotator "TA"]
[PlyCount "92"]
[EventDate "2022.12.01"]
[EventType "tourn"]
[EventCountry "ARG"]
[SourceTitle "playchess.com"]
[Source "ChessBase"]
[SourceQuality "1"]
[TimeControl "40/5400+30:1800+30"]

{[%evp 13,92,12,17,21,21,19,11,17,17,15,22,20,22,18,19,0,39,38,35,35,81,23,23,12,23,18,18,0,0,0,31,-20,-13,-27,-8,-13,-24,-20,-10,-8,0,-141,-105,-113,-80,-82,-86,-200,-80,-129,0,0,0,0,-3,-81,-63,-295,-282,-277,-285,-281,-276,-272,-266,-240,-255,-436,-396,-476,-478,-468,-474,-488,-483,-471,-469,-705,-674,-632,-584]} 1. d4 {[%emt 0:01:10]} Nf6 {[%emt 0:00:07]} 2. c4 {[%emt 0:00:09]} e6 {[%emt 0:00:04]} 3. Nf3 {[%emt 0:00:06]} b6 {[%emt 0:00:05]} 4. g3 {[%emt 0:00:07]} Bb7 {[%emt 0:00:03]} 5. Bg2 {[%emt 0:00:10]} Be7 {[%emt 0:00:04]} 6. O-O {[%emt 0:00:06]} O-O {[%emt 0:00:04]} 7. Re1 {[%emt 0:00:21]} Qc8 {[%emt 0:00:35]} 8. Bg5 {[%emt 0:03:12][%cal Oe2e4] E17: Queen's Indian: 4 g3 Bb7 5 Bg2 Be7.} h6 {[%emt 0:00:21] Against e4} 9. Bxf6 {[%emt 0:00:57]} Bxf6 {[%emt 0:00:07]} 10. Nc3 {[%emt 0:03:07] The position is equal.} d6 {[%emt 0:00:15]} 11. Rc1 {[%emt 0:07:23] [#]} Nd7 $146 {[%emt 0:01:06]} ({Predecessor:} 11... c5 12. d5 Bxc3 13. Rxc3 e5 14. Nh4 Qd8 15. Bh3 Nd7 16. e4 Bc8 17. Ng2 Nf6 18. Bxc8 Qxc8 {½-½ (53) Sargissian,G (2670)-L'Ami,E (2605) Douglas 2016}) 12. b3 {[%emt 0:23:17]} a6 {[%emt 0:11:12]} 13. h4 {[%emt 0:00:59]} c5 {[%emt 0:02:17]} 14. d5 {[%emt 0:01:19]} e5 {[%emt 0:03:09]} 15. Bh3 {[%emt 0:09:54]} Qd8 {[%emt 0:02:00]} 16. Nd2 {[%emt 0:07:46]} h5 {[%emt 0:04:26]} (16... Be7 $14) 17. e4 {[%emt 0:01:17]} (17. Nde4 $16) 17... g6 $11 {[%emt 0:00:14]} 18. Nf1 {[%emt 0:00:08]} Bg7 {[%emt 0:04:05]} 19. Rc2 {[%emt 0:01:59]} Bh6 {[%emt 0:01:54]} 20. Kg2 {[%emt 0:02:49]} Nf6 {[%emt 0:01:36]} 21. Qf3 {[%emt 0:00:37]} Ne8 {[%emt 0:00:55]} 22. Ne3 {[%emt 0:02:02]} ({White should play} 22. Rb1 $14) 22... Ng7 {[%emt 0:00:59]} 23. Kh2 {[%emt 0:03:57]} (23. Rg1 {feels hotter.} f5 24. exf5 Bc8 25. f6) 23... f5 {[%emt 0:07:14]} 24. exf5 {[%emt 0:01:46]} gxf5 {[%emt 0:00:27]} 25. Ng2 {[%emt 0:01:05]} (25. Nxf5 Nxf5 26. Qxh5 (26. Bxf5 Bc8 $19) 26... Qe8 27. Qxe8 Raxe8 28. Bxf5 Rxf5 $17) 25... Bc8 {[%emt 0:09:10]} 26. Qd1 {[%emt 0:05:03]} f4 {[%emt 0:13:40]} (26... Qf6 {simplifies} 27. f4 exf4 28. gxf4 Bd7) 27. Re4 {[%emt 0:00:35]} (27. Bxc8 $11 Qxc8 28. Ne4) 27... Bxh3 $17 {[%emt 0:13:30]} 28. Kxh3 {[%emt 0:00:06]} Ra7 {[%emt 0:00:05]} 29. gxf4 {[%emt 0:06:29]} exf4 {[%emt 0:00:52]} (29... Bxf4 30. Nxf4 exf4 31. f3 $16) 30. Qf3 {[%emt 0:03:14]} (30. Kh2 $2 f3 31. Ne1 Qf6 $19) (30. f3 $17) 30... Qf6 {[%emt 0:13:34]} (30... Nf5 $1 $19 {has better winning chances. White must now prevent ...Qc8.} 31. Kh2 (31. Qxh5 $2 Rh7 $17) 31... Bg7) 31. Rce2 {[%emt 0:00:15] [#]} (31. Rc1 $142) 31... Raf7 {[%emt 0:01:48]} (31... Nf5 $6 32. Re6 Qg7 33. R2e4 $11) ({Better is} 31... Qf5+ $1 $17 32. Kh2 Qg4 33. Qxg4 hxg4) 32. Kh2 {[%emt 0:05:15][%cal Oe4e6]} Qg6 {[%emt 0:02:45] Against Re6. White should prevent ...Qg4.} 33. Re1 {[%emt 0:01:57]} Qg4 {[%emt 0:01:48]} (33... Nf5 {simplifies} 34. Ne2 Qg4 35. Qxg4+ hxg4 36. Nexf4 Nxh4 37. Nxh4 Bxf4+ 38. Kg1 Kh7) 34. Qh3 {[%emt 0:00:12]} (34. Qd3 $11 {remains equal.}) 34... Nf5 {[%emt 0:01:59] aiming for ...Rg7. Black is more active.} (34... Qxh3+ $6 35. Kxh3 f3 36. Ne3 $11) 35. f3 $2 {[%emt 0:06:43] White does not recover from this.} ({Of course not} 35. Qxg4+ hxg4 36. Rg1 (36. Nxf4 $2 {loses.} Nxh4 37. Kg3 Nf3 $19) 36... Bg7 37. Nxf4 Bxc3 $17) ({White has to play} 35. Rg1 $1 $15 Qxh3+ 36. Kxh3) 35... Qg3+ $19 {[%emt 0:01:25]} 36. Qxg3+ {[%emt 0:00:01]} fxg3+ {[%emt 0:00:07]} 37. Kh3 {[%emt 0:00:02]} Bd2 $1 {[%emt 0:00:19][%csl LRc3,LRe1]} 38. Ne2 {[%emt 0:01:43]} Bxe1 {[%emt 0:00:19]} 39. Nxe1 {[%emt 0:00:01]} Rg7 {[%emt 0:03:36][%cal Og3g2]} 40. Ng2 $2 {[%emt 0:00:00] [#]} (40. Nf4 g2 41. Nexg2 Rg3+ 42. Kh2 Rxf3 43. Nxh5) 40... Nd4 $1 {[%emt 0:00:00]} 41. Nxd4 {[%emt 0:00:41]} cxd4 {[%emt 0:01:41] KRR-KRN. Black is clearly winning.} 42. f4 {[%emt 0:00:09]} Kf7 {[%emt 0:08:07]} ({Don't blunder} 42... d3 $2 43. Re3 $19) 43. Rxd4 {[%emt 0:00:08]} Re8 {[%emt 0:00:03] Prevents Re4. Threatens to win with ...Re2.} 44. Rd2 {[%emt 0:00:12]} Kf6 {[%emt 0:00:11]} 45. a4 {[%emt 0:00:29]} (45. Rc2 $142 Kf5 46. Rd2) 45... a5 {[%emt 0:02:59]} 46. Rd3 {[%emt 0:01:22]} Re2 {[%emt 0:00:49] Weighted Error Value: White=0.39/Black=0.12 (very precise)} 0-1

[Event "97th Argentine Championship 2022"]
[Site "Barichole"]
[Date "2022.12.07"]
[Round "8.3"]
[White "Perez Ponsa, Federico"]
[Black "Mareco, Sandro"]
[Result "1/2-1/2"]
[ECO "B11"]
[WhiteElo "2538"]
[BlackElo "2619"]
[Annotator "TA"]
[PlyCount "75"]
[EventDate "2022.12.01"]
[EventType "tourn"]
[EventCountry "ARG"]
[SourceTitle "playchess.com"]
[Source "ChessBase"]
[SourceQuality "1"]
[TimeControl "40/5400+30:1800+30"]

{[%evp 10,75,7,13,10,0,63,41,83,50,60,54,56,56,70,54,83,73,78,78,103,106,189,177,161,78,91,82,84,93,85,0,0,0,0,-54,-50,-48,-39,-56,0,0,0,0,0,-58,-53,-80,-63,-304,-166,-190,66,87,227,232,232,226,216,47,46,0,0,0,0,0,0,0]} 1. e4 {[%emt 0:00:03]} c6 {[%emt 0:00:04]} 2. Nf3 {[%emt 0:00:17]} d5 {[%emt 0:00:05]} 3. Nc3 {[%emt 0:00:05]} Bg4 {[%emt 0:00:05]} 4. h3 {[%emt 0:00:05]} Bxf3 {[%emt 0:00:05]} 5. Qxf3 {[%emt 0:00:04]} e6 {[%emt 0:00:05]} 6. Be2 {[%emt 0:00:05]} Bc5 {[%emt 0:00:04] B11: Caro-Kann: Two Knights Variation.} (6... d4 {simplifies} 7. Nb1 Nf6 8. O-O Nbd7) 7. Qg3 {[%emt 0:03:05] [#]} Ne7 $146 {[%emt 0:12:27]} (7... Bd4 $11) ({Predecessor:} 7... Bd4 8. O-O Ne7 9. exd5 exd5 10. Bd1 Nd7 11. Ne2 Be5 12. Qf3 O-O 13. d4 Bd6 14. c3 {1-0 (61) McShane,L (2655)-Ghasi,A (2485) London 2021}) 8. Qxg7 {[%emt 0:14:52]} Ng6 {[%emt 0:00:17] White is slightly better.} 9. exd5 {[%emt 0:12:18]} cxd5 {[%emt 0:01:19]} 10. Bb5+ {[%emt 0:10:01]} (10. d4 $2 Bf8 $19) 10... Nc6 {[%emt 0:00:53]} 11. Na4 {[%emt 0:05:56]} (11. d4 $2 Bf8 $19) 11... Bd6 {[%emt 0:23:18]} 12. Bxc6+ $1 {[%emt 0:05:09]} bxc6 {[%emt 0:00:05]} 13. Qc3 $1 {[%emt 0:00:04]} Qh4 {[%emt 0:05:38]} 14. d4 {[%emt 0:12:32]} O-O {[%emt 0:15:54]} 15. Be3 {[%emt 0:04:43]} f5 {[%emt 0:00:26]} (15... Nf4 $16) 16. Qxc6 $18 {[%emt 0:05:17]} f4 {[%emt 0:18:33]} 17. g3 {[%emt 0:10:00]} ({Stronger than} 17. Qxd6 fxe3 18. O-O-O (18. Qxe6+ Kh8 $11) 18... exf2 $11) (17. Bd2 $1 $18 Qe7 18. O-O-O) 17... Qe7 {[%emt 0:00:27]} 18. gxf4 $1 {[%emt 0:01:06] Threatens to win with 0-0-0.} Rac8 {[%emt 0:00:07][%mdl 64] Deflection} 19. Qa6 {[%emt 0:00:47] And now 0-0-0 would win.} Rxc2 {[%emt 0:00:08] [#]} 20. Qd3 {[%emt 0:00:37]} (20. Kd1 $1 $16 {[%cal Rd1c2]} Qc7 21. Rc1 Rxc1+ 22. Bxc1) 20... Rcc8 $11 {[%emt 0:06:53]} (20... Nxf4 $2 21. Rg1+ Kh8 22. Qxc2 $18) 21. Rg1 {[%emt 0:01:35][%cal Of4f5]} Kh8 {[%emt 0:02:19]} 22. Rg4 {[%emt 0:07:39]} (22. Rc1 $11) 22... Nxf4 $15 {[%emt 0:06:07]} 23. Bxf4 {[%emt 0:00:17]} Bxf4 {[%emt 0:00:04]} 24. Kf1 {[%emt 0:00:36]} Qf6 {[%emt 0:01:05]} (24... Rf5 $15 25. Re1 Rcf8) 25. Rd1 $11 {[%emt 0:02:24]} Rf7 {[%emt 0:00:53]} 26. Nc3 {[%emt 0:01:27]} Rcf8 {[%emt 0:00:19]} 27. Re1 {[%emt 0:00:51]} (27. Qe2 $11) 27... Qh6 $15 {[%emt 0:01:22] aiming for ...Bd2.} 28. Rg2 {[%emt 0:01:13]} Rf5 {[%emt 0:01:35]} 29. Qe2 {[%emt 0:01:20]} ({White should try} 29. Nd1 $15) 29... Qxh3 {[%emt 0:01:06]} (29... Bd2 $142 {[%cal Of5f2] White must now prevent ...Rxf2+!} 30. Kg1 Bxe1 31. Qxe1 R8f6) 30. Qg4 $19 {[%emt 0:00:21][%csl Gg2][%cal Rg4g7] [#]} Qh6 {[%emt 0:00:09] Inhibits Qg7+.} ({And not} 30... Qxg4 31. Rxg4 R8f6 32. Ke2 $15) (30... Qd3+ $1 $19 31. Ne2 Bh6) 31. Rxe6 $1 $14 {[%emt 0:00:24] Dancing on a razor blade. White has more active pieces.} R5f6 {[%emt 0:00:07]} (31... Qg5 $16) 32. Rxf6 $18 {[%emt 0:00:32]} Qxf6 {[%emt 0:00:05]} 33. Nxd5 {[%emt 0:00:39]} Qa6+ {[%emt 0:00:24]} 34. Qe2 $2 {[%emt 0:00:34]} (34. Kg1 $18 {[%csl Gg2][%cal Rg4g7]} Bh6 35. Qe4) 34... Qxa2 $14 {[%emt 0:00:27]} 35. Nxf4 {[%emt 0:00:31]} (35. Nc3 $1 $14 {is superior.} Qa1+ 36. Nd1) 35... Qb1+ $11 {[%emt 0:00:05] The position is equal.} 36. Qe1 {[%emt 0:00:02]} Qxe1+ {[%emt 0:00:45]} 37. Kxe1 {[%emt 0:00:03]} Rxf4 {[%emt 0:00:05]} 38. Rg5 {[%emt 0:01:56] White used his chance.   Weighted Error Value: White=0.34/Black=0.34} 1/2-1/2

[Event "97th Argentine Championship 2022"]
[Site "Barichole"]
[Date "2022.12.07"]
[Round "8.4"]
[White "Valerga, Diego"]
[Black "Pichot, Alan"]
[Result "1-0"]
[ECO "D43"]
[WhiteElo "2438"]
[BlackElo "2637"]
[Annotator "TA"]
[PlyCount "67"]
[EventDate "2022.12.01"]
[EventType "tourn"]
[EventCountry "ARG"]
[SourceTitle "playchess.com"]
[Source "ChessBase"]
[SourceQuality "1"]
[TimeControl "40/5400+30:1800+30"]

{[%evp 13,67,0,2,-11,0,0,0,-13,0,0,50,-13,2,-10,73,70,79,73,74,70,82,81,125,124,158,122,201,189,195,189,258,166,160,174,180,166,233,233,582,579,718,703,631,511,533,519,511,472,492,481,452,475,488,448,431,422]} 1. d4 {[%emt 0:00:17]} Nf6 {[%emt 0:00:17]} 2. Nf3 {[%emt 0:00:07]} d5 {[%emt 0:00:36]} 3. c4 {[%emt 0:00:14]} e6 {[%emt 0:00:07]} 4. Nc3 {[%emt 0:00:30]} dxc4 {[%emt 0:00:31]} 5. Qa4+ {[%emt 0:01:08]} c6 {[%emt 0:00:41][%cal Bc7c6,Bc6c5,Bc5c4][%mdl 32]} 6. Qxc4 {[%emt 0:00:08]} b5 {[%emt 0:00:05]} 7. Qd3 {[%emt 0:01:03]} a6 {[%emt 0:00:46]} 8. Bg5 {[%emt 0:02:58] 8.g4 is the modern continuation. D43: Semi-Slav: 5 Bg5 h6.} c5 {[%emt 0:08:22]} 9. Bxf6 {[%emt 0:03:47]} gxf6 {[%emt 0:00:06]} 10. d5 {[%emt 0:02:00] The position is equal.} Ra7 {[%emt 0:00:20]} 11. e4 {[%emt 0:03:48]} Rd7 {[%emt 0:06:16] [#]} ({Better is} 11... Bg7 $11) 12. O-O-O $146 {[%emt 0:06:11]} (12. Qe3 $14) ({Predecessor:} 12. Qc2 Bh6 13. g3 O-O 14. Bh3 Rd6 15. O-O Nd7 16. Rad1 Ne5 17. Nxe5 fxe5 18. b3 {1-0 (88) Khismatullin,D (2667)-Alsina Leal,D (2546) Kavala 2010}) 12... c4 {[%emt 0:15:48]} 13. Qc2 {[%emt 0:06:52]} b4 {[%emt 0:04:22]} (13... Bg7 $11 {keeps the balance.}) 14. Na4 $16 {[%emt 0:11:09] White stays focused until the end.} b3 {[%emt 0:05:16]} 15. axb3 {[%emt 0:01:08]} cxb3 {[%emt 0:00:06]} 16. Qxb3 {[%emt 0:01:10]} Rb7 {[%emt 0:00:11]} 17. Qa2 {[%emt 0:06:38] Active counter play!} Qc7+ {[%emt 0:32:23]} 18. Kb1 {[%emt 0:07:07]} Bh6 {[%emt 0:02:56] Against Rc1} 19. Qc4 {[%emt 0:07:03]} Qd8 {[%emt 0:01:37]} (19... O-O $16 {is a better defense.}) 20. Be2 $18 {[%emt 0:04:20] [#] Hoping for dxe6.} e5 {[%emt 0:00:31]} 21. Nc5 {[%emt 0:06:15][%csl LRa6,LRb7]} Rb6 {[%emt 0:00:30]} (21... Ra7 $142 22. g4 Qd6) 22. Nh4 {[%emt 0:02:14][%cal Oc5e6] And now Ne6! would win.} O-O {[%emt 0:00:16]} 23. Rd3 {[%emt 0:00:18]} a5 {[%emt 0:02:32]} 24. Rb3 $36 {[%emt 0:03:18][%mdl 2048] Keeping Black busy.} Bg5 {[%emt 0:03:22]} (24... Rxb3 $142 25. Qxb3 Qe7) 25. Nf5 {[%emt 0:05:52]} Nd7 $2 {[%emt 0:01:37] [#]} (25... Rxb3 {is a better chance.} 26. Qxb3 Bxf5 27. exf5 Nd7) 26. Ne6 $1 {[%emt 0:02:13][%mdl 512] Pair of Knights! White is clearly winning.} Qe8 {[%emt 0:07:03]} (26... fxe6 27. dxe6) 27. Nxf8 {[%emt 0:00:47]} Qxf8 {[%emt 0:00:32]} 28. Ne7+ {[%emt 0:04:47]} Qxe7 {[%emt 0:00:27]} 29. Qxc8+ {[%emt 0:00:06]} Kg7 {[%emt 0:00:04]} 30. Rb5 {[%emt 0:02:20]} Rxb5 {[%emt 0:01:54]} 31. Bxb5 {[%emt 0:00:07]} Nc5 {[%emt 0:00:03]} 32. h4 {[%emt 0:00:31]} Bf4 {[%emt 0:00:22]} 33. g3 {[%emt 0:00:44]} Bh6 {[%emt 0:00:49]} 34. Rd1 {[%emt 0:10:20] Weighted Error Value: White=0.21 (precise) /Black=0.35} 1-0

[Event "97th Argentine Championship 2022"]
[Site "Barichole"]
[Date "2022.12.07"]
[Round "8.5"]
[White "Acosta, Pablo Ismael"]
[Black "Flores, Diego"]
[Result "1-0"]
[ECO "D23"]
[WhiteElo "2461"]
[BlackElo "2547"]
[Annotator "TA"]
[PlyCount "73"]
[EventDate "2022.12.01"]
[EventType "tourn"]
[EventCountry "ARG"]
[SourceTitle "playchess.com"]
[Source "ChessBase"]
[SourceQuality "1"]
[TimeControl "40/5400+30:1800+30"]

{[%evp 11,73,23,16,22,19,32,216,227,205,238,310,314,461,199,196,155,158,165,162,162,156,166,755,790,743,778,783,783,783,756,789,786,768,762,1067,1050,2385,687,686,670,645,508,498,506,509,509,503,502,500,496,500,493,569,569,569,565,547,506,910,903,869,841,5808,4828]} 1. d4 {[%emt 0:00:47]} Nf6 {[%emt 0:00:14]} 2. c4 {[%emt 0:00:32]} e6 {[%emt 0:00:12]} 3. Nc3 {[%emt 0:00:05]} d5 {[%emt 0:00:39]} 4. Nf3 {[%emt 0:00:19]} dxc4 {[%emt 0:00:18]} 5. Qa4+ {[%emt 0:00:13]} Nbd7 {[%emt 0:03:01]} 6. e4 {[%emt 0:00:54]} c5 {[%emt 0:18:17]} 7. d5 {[%emt 0:01:43] D23: Queen's Gambit Accepted: 3 Nf3 Nf6 sidelines.} exd5 {[%emt 0:00:40]} 8. e5 $1 {[%emt 0:01:08] Prevents d4.} d4 $2 {[%emt 0:10:24] This costs Black the game.} (8... b5 $1 $14 9. Qxb5 Rb8) 9. exf6 $18 {[%emt 0:09:54] White is clearly better.} dxc3 {[%emt 0:01:58]} 10. Bxc4 {[%emt 0:06:46]} Qxf6 {[%emt 0:11:59]} 11. Bg5 {[%emt 0:11:31]} Qc6 {[%emt 0:05:49] [#]} (11... Qg6 $142) 12. Qb3 {[%emt 0:03:15]} (12. Qxc6 bxc6 13. O-O-O (13. bxc3 f6 $15) 13... cxb2+ 14. Kxb2 f6 $15) (12. Bxf7+ $142 $1 {[%mdl 512]} Kxf7 13. Qf4+ Ke8 14. O-O-O cxb2+ 15. Kxb2) 12... f6 {[%emt 0:01:52] [#]} 13. O-O $1 {[%emt 0:04:21] [#]} fxg5 $146 {[%emt 0:09:50]} ({Predecessor:} 13... cxb2 14. Rae1+ Kd8 15. Bf4 Qb6 16. Qd3 g5 17. Bg3 a6 18. Re6 Qb4 19. a3 Qa5 20. Rfe1 Bg7 21. Qd6 {1-0 (21) Arutinian,D (2552)-Gelazonia,P (2268) Tbilisi 2007}) 14. Rae1+ {[%emt 0:10:48]} Kd8 {[%emt 0:13:12] Hoping for ...Qf6.} 15. Re6 {[%emt 0:07:51] Against Qf6} Qc7 {[%emt 0:00:53]} 16. Nxg5 {[%emt 0:04:16][%cal Rg5f7] White is more active.} Qf4 {[%emt 0:02:01] [#] Against Nf7+} (16... Qa5) 17. Re8+ $3 {[%emt 0:05:01][%mdl 576] Decoy. White is clearly winning.} Kxe8 {[%emt 0:00:14] [#]} 18. Bf7+ $1 {[%emt 0:00:04]} Ke7 {[%emt 0:00:58]} 19. Qe6+ {[%emt 0:01:24]} Kd8 {[%emt 0:00:06]} 20. Qe8+ {[%emt 0:00:04]} Kc7 {[%emt 0:00:04]} 21. Ne6+ {[%emt 0:00:06]} Kb8 {[%emt 0:01:30]} 22. Nxf4 {[%emt 0:00:21]} cxb2 {[%emt 0:10:27]} 23. Be6 {[%emt 0:05:15]} Nb6 {[%emt 0:00:16]} 24. Bxc8 {[%emt 0:01:37]} (24. Nd5 $142 Be7 25. Qxh8) 24... Nxc8 {[%emt 0:00:14]} 25. Ne6 {[%emt 0:10:41] Inhibits a6.} a6 {[%emt 0:01:02]} 26. Nxf8 {[%emt 0:02:19]} Ka7 {[%emt 0:00:08]} 27. Qf7 {[%emt 0:00:29]} Nb6 {[%emt 0:01:53]} 28. Ne6 {[%emt 0:06:33]} (28. Qxg7 Rhxf8 29. Qxb2 Rac8 $18) 28... Rac8 {[%emt 0:01:28]} 29. Rb1 {[%emt 0:02:15]} (29. Nxg7 c4 30. Nf5 Rhd8 $14) 29... Na4 {[%emt 0:02:41]} 30. Qd7 {[%emt 0:01:21] Against c4} (30. Nxg7 c4 31. Nf5 Rhd8 $11) 30... Rc6 {[%emt 0:02:15]} 31. f4 {[%emt 0:01:03]} (31. Qxg7 Re8 32. Nf4 Rd8 $11) 31... c4 {[%emt 0:00:38]} 32. Nd4 {[%emt 0:00:34] Against c3} (32. Qxg7 Rhc8 33. Nd4 Rd6 $14) 32... Rhc8 {[%emt 0:00:10][%cal Oc4c3]} 33. Nxc6+ {[%emt 0:02:24]} Rxc6 {[%emt 0:00:02]} 34. Qd1 {[%emt 0:00:43] Inhibits c3.} (34. Qxg7 $2 {too greedy.} c3 35. Qd4+ (35. Qxh7 $2 c2 $19) 35... Rc5 $19) 34... c3 {[%emt 0:00:38]} (34... b5 $142 35. Qd7+ Kb6 36. Qd4+ Kb7 37. Rxb2 Nxb2 38. Qxg7+ Kc8 39. Qxb2 c3) 35. Qxa4 {[%emt 0:00:38] aiming for Qd4+.} c2 {[%emt 0:00:04]} 36. Qd4+ {[%emt 0:00:04]} (36. Rxb2 {leads to mate.} c1=Q+ 37. Kf2 Qxb2+ 38. Kg3 Rg6+ 39. Kf3 Qxg2+ 40. Ke3 Re6+ 41. Kd4 Re4+ 42. Kc3 Rxa4 43. Kd3 Qf3+ 44. Kc2 Rxa2+ 45. Kb1 Qb3+ 46. Kc1 Qc2#) 36... Rb6 {[%emt 0:00:03] [#]} 37. Qxb6+ $3 {[%emt 0:00:09] Weighted Error Value: White=0.56/Black=0.36} 1-0